bitfinex/quotes_ETHUSD_20241225
["timestamp","ask_amount","ask_price","bid_price","bid_amount"]
[1735141972702,2.87637,3476.6,3476.5,2.7004298]
[1735141973922,2.87637,3476.6,3476.4,0.99692295]
[1735141975126,2.87637,3476.6,3476.3,0.99692295]
[1735141976136,2.87637,3476.6,3476.4,0.99692295]
[1735141976623,2.87645,3476.5,3476.4,0.99692295]
[1735141977706,2.87645,3476.5,3476.3,0.99692295]
[1735141978047,3.65173,3476.4,3476.3,0.99692295]
[1735141978171,4.20173,3476.4,3476.3,0.99692295]
[1735141978808,4.20173,3476.4,3476.3,2.95e-06]
[1735141979017,4.20198,3476.1,3476.0,1.2066002]
[1735141980608,1.3252,3476.1,3475.1,0.58318544]
[1735141980818,2.87731,3475.5,3475.1,0.58318544]
[1735141981188,0.03807997,3475.4,3475.1,1.16158795]
[1735141982302,0.03807997,3475.4,3475.1,2.65541755]
[1735141982708,2.87731,3475.5,3475.1,2.65541755]
[1735141983920,2.87731,3475.5,3475.1,1.16158795]
[1735141984414,1.3252,3476.1,3475.1,1.16158795]
[1735141984617,2.87736,3475.4,3475.1,0.58318544]
[1735141985275,2.87753,3475.2,3475.1,0.58318544]
[1735141985713,0.7752,3475.3,3474.9,1.2066002]
[1735141985913,0.03797144,3475.2,3474.9,1.2066002]
[1735141986221,2.87778,3474.9,3474.8,2.70017003]
[1735141986683,3.69063792,3474.9,3474.8,2.70017003]
[1735141987176,0.03765792,3474.9,3474.8,3.59160661]
[1735141987373,2.87738,3475.4,3474.8,3.59160661]
[1735141987618,0.03763983,3475.3,3474.8,3.59160661]
[1735141987791,0.03763983,3475.3,3474.8,0.89143658]
[1735141987981,0.03763983,3475.3,3474.6,0.6908]
[1735141988180,2.87738,3475.4,3474.6,0.6908]
[1735141988418,0.03752523,3475.3,3474.6,0.6908]
[1735141988794,3.42728,3475.5,3474.6,0.6908]
[1735141988975,2.87772,3475.0,3474.6,0.6908]
[1735141989181,2.87781,3474.9,3474.5,1.2066002]
[1735141989502,0.03752523,3474.8,3474.5,1.2066002]
[1735141989688,2.87794,3474.7,3474.5,1.2066002]
[1735141990021,2.87758,3475.2,3474.5,1.2066002]
[1735141990022,3.69552,3474.6,3474.5,1.2066002]
[1735141990313,3.73304523,3474.6,3474.5,1.2066002]
[1735141991054,2.87821,3474.4,3474.1,1.2066002]
[1735141991754,0.03752523,3474.3,3474.1,1.2066002]
[1735141992354,0.03752523,3474.3,3474.0,0.6908]
[1735141993352,0.03752523,3474.3,3473.8,0.58883523]
[1735141993529,2.91580523,3474.3,3473.8,0.58883523]
[1735141993857,0.0372519,3474.2,3473.8,0.58883523]
[1735141994254,2.87828,3474.3,3473.8,0.58883523]
[1735141994556,0.0372519,3474.1,3473.8,0.58883523]
[1735141994858,0.0372519,3474.0,3473.8,0.58883523]
[1735141995353,2.87828,3474.3,3473.8,0.58883523]
[1735141995354,0.55,3474.3,3473.8,0.58883523]
[1735141995602,0.55,3474.3,3473.4,0.6908]
[1735141995603,0.03642538,3473.9,3473.3,1.2066002]
[1735141995719,0.8175,3473.8,3473.3,1.80077943]
[1735141995914,3.696,3474.1,3473.4,0.32891204]
[1735141996217,3.696,3474.1,3473.3,1.77198975]
[1735141996579,0.03536954,3474.0,3473.3,1.77198975]
[1735141996785,2.87871,3473.8,3473.3,0.56538955]
[1735141997083,0.0352126,3473.7,3473.3,0.56538955]
[1735141997552,2.87871,3473.8,3473.3,0.56538955]
[1735141997714,0.03520657,3473.6,3473.3,0.56538955]
[1735141998060,2.87871,3473.8,3473.3,0.56538955]
[1735141998255,0.03520657,3473.5,3473.3,0.56538955]
[1735141998461,2.87882,3473.7,3473.3,0.56538955]
[1735141998665,0.03520657,3473.4,3473.3,0.56538955]
[1735141998823,0.8175,3473.4,3473.3,0.56538955]
[1735141999024,0.85270657,3473.4,3473.3,0.56538955]
[1735141999425,0.85270657,3473.4,3472.8,1.2066002]
[1735141999659,2.87943,3472.9,3472.8,1.2066002]
[1735142000025,2.87952,3472.8,3472.5,1.2066002]
[1735142000331,0.55,3472.8,3472.5,1.2066002]
[1735142000531,2.87968,3472.6,3472.5,1.2066002]
[1735142001061,2.9146632,3472.6,3472.5,1.2066002]
[1735142001892,2.9146632,3472.6,3471.5,7.0871802]
[1735142002181,2.9146632,3472.6,3471.8,1.58140277]
[1735142002325,0.0349832,3472.6,3471.9,0.57207577]
[1735142002664,0.55,3472.5,3471.9,0.57207577]
[1735142002961,0.792,3472.2,3471.5,1.2066002]
[1735142003178,3.67202,3472.2,3471.5,1.2066002]
[1735142003382,0.0342162,3472.1,3471.2,1.2066002]
[1735142003677,3.67202,3472.2,3471.2,2.34014728]
[1735142003979,2.8801,3472.1,3471.2,2.34014728]
[1735142004378,0.0342162,3472.0,3471.2,2.34014728]
[1735142004548,2.9144062,3472.0,3471.2,5.34014728]
[1735142004754,2.9144062,3472.0,3471.5,0.57620736]
[1735142005284,0.0342162,3472.0,3471.5,1.16784282]
[1735142005439,3.67203,3472.2,3471.5,1.16784282]
[1735142005659,0.0342162,3471.9,3471.5,1.16784282]
[1735142005982,3.67203,3472.2,3471.5,1.16784282]
[1735142006200,0.792,3472.5,3471.6,0.6908]
[1735142006396,3.67165,3472.7,3471.9,2.33464769]
[1735142006601,2.91378307,3472.6,3471.9,2.33464769]
[1735142007130,2.87973,3472.6,3471.9,2.33464769]
[1735142007814,0.03405307,3472.5,3471.9,2.33464769]
[1735142008015,2.87973,3472.6,3471.9,2.33464769]
[1735142008314,2.87973,3472.6,3471.9,2.67912536]
[1735142008515,0.03405307,3472.5,3471.9,2.67912536]
[1735142009465,0.792,3473.0,3472.0,0.6908]
[1735142010105,0.03405307,3472.9,3472.0,0.6908]
[1735142010613,2.91349307,3472.9,3472.0,0.6908]
[1735142010824,2.91349307,3472.9,3472.1,0.62502654]
[1735142013328,2.91349307,3472.9,3472.3,2.33464769]
[1735142013329,0.03405307,3472.9,3472.3,2.33464769]
[1735142013488,0.03405307,3472.9,3472.4,0.6908]
[1735142013694,2.87944,3472.9,3472.4,0.6908]
[1735142013904,0.03233825,3472.8,3472.4,0.6908]
[1735142015831,2.91185825,3472.8,3472.4,0.6908]
[1735142016010,0.03233825,3472.8,3472.4,0.6908]
[1735142016211,0.792,3473.2,3472.0,0.6908]
[1735142016212,2.87937,3473.0,3472.0,0.6908]
[1735142016564,0.03233825,3472.9,3472.1,0.59057777]
[1735142016764,2.91177825,3472.9,3472.4,0.56684176]
[1735142017947,2.87954,3472.8,3472.4,0.56684176]
[1735142018612,0.03274905,3472.7,3472.4,0.56684176]
[1735142018845,2.87954,3472.8,3472.4,0.56684176]
[1735142019042,0.03274905,3472.6,3472.4,0.56684176]
[1735142019248,2.87954,3472.8,3472.4,0.56684176]
[1735142020045,0.03274905,3472.7,3472.4,0.56684176]
[1735142020258,2.87954,3472.8,3472.4,0.56684176]
[1735142020436,0.03274905,3472.6,3472.4,0.56684176]
[1735142020626,2.87954,3472.8,3472.4,0.56684176]
[1735142020848,0.03274905,3472.7,3472.4,0.56684176]
[1735142021046,2.87954,3472.8,3472.4,0.56684176]
[1735142021471,0.03274905,3472.7,3472.4,0.56684176]
[1735142021870,2.87954,3472.8,3472.4,0.56684176]
[1735142022070,0.03274905,3472.6,3472.4,0.56684176]
[1735142022275,2.87911,3473.3,3472.5,0.7195967]
[1735142022484,2.87911,3473.3,3472.6,0.36210862]
[1735142022707,2.87923,3473.2,3472.6,0.36210862]
[1735142023844,0.7822,3473.5,3472.6,0.36210862]
[1735142023845,2.87903,3473.4,3472.6,0.36210862]
[1735142024062,2.87886,3473.6,3472.7,2.36344021]
[1735142024234,2.87886,3473.6,3472.8,0.6908]
[1735142024439,2.87886,3473.6,3472.9,0.37042599]
[1735142025379,2.87886,3473.6,3472.9,0.37042601]
[1735142025566,2.87886,3473.6,3472.9,0.34163488]
[1735142026083,0.03303895,3473.5,3472.9,0.34163488]
[1735142026962,0.03303895,3473.5,3472.9,0.370426]
[1735142027167,0.03303895,3473.5,3473.0,0.33958737]
[1735142027338,0.03303895,3473.5,3473.1,0.6908]
[1735142027543,2.87861,3473.9,3473.1,0.6908]
[1735142027768,0.03323217,3473.4,3472.9,0.6908]
[1735142027959,2.87898,3473.5,3472.9,0.6908]
[1735142028292,0.03323217,3473.4,3472.9,0.6908]
[1735142028656,3.69446217,3473.4,3472.7,3.02544769]
[1735142028850,0.81543217,3473.4,3472.7,0.6908]
[1735142029057,2.87946,3472.9,3472.4,0.6908]
[1735142029391,2.87928,3473.1,3472.4,0.6908]
[1735142029690,2.87928,3473.1,3472.4,1.27933379]
[1735142029986,0.03364887,3473.0,3472.4,1.27933379]
[1735142030148,0.03364887,3473.0,3472.4,1.82044973]
[1735142030570,2.87912,3473.3,3472.4,1.82044973]
[1735142030807,0.03364887,3472.9,3472.4,1.82044973]
[1735142031110,0.7822,3473.4,3472.4,4.70027973]
[1735142031316,2.87895,3473.5,3472.4,4.70027973]
[1735142031317,0.03254113,3472.8,3472.5,0.6908]
[1735142031475,0.55,3473.5,3472.5,0.6908]
[1735142031805,0.03254113,3472.7,3472.5,0.6908]
[1735142032032,2.87928,3473.1,3472.5,0.6908]
[1735142032293,0.03254113,3473.0,3472.5,0.6908]
[1735142032689,2.91190113,3473.0,3472.5,0.6908]
[1735142032862,2.91190113,3473.0,3472.4,0.58853379]
[1735142033069,0.03254113,3473.0,3472.4,1.07059196]
[1735142033900,2.8792,3473.2,3472.4,1.07059196]
[1735142034054,2.8792,3473.2,3472.5,0.99437703]
[1735142034259,2.87905,3473.4,3472.5,0.99437703]
[1735142034556,2.87905,3473.4,3472.6,1.53940769]
[1735142034984,0.55,3473.5,3472.6,0.6908]
[1735142035170,2.87902,3473.4,3472.6,0.6908]
[1735142035369,2.87917,3473.3,3472.6,0.6908]
[1735142035566,0.55,3473.5,3472.7,0.99437703]
[1735142035819,2.87918,3473.3,3472.7,0.99437703]
[1735142036783,2.87918,3473.3,3472.6,0.7195936]
[1735142036784,2.87918,3473.3,3472.6,0.6908]
[1735142037230,0.55,3473.5,3472.6,0.6908]
[1735142037403,2.87919,3473.2,3472.6,0.6908]
[1735142039026,2.87919,3473.2,3472.6,0.99978752]
[1735142039327,2.87919,3473.2,3472.7,0.99658261]
[1735142040530,2.87919,3473.2,3472.7,3.69678068]
[1735142040732,2.87934,3473.1,3472.7,3.69678068]
[1735142041157,0.03225732,3473.0,3472.7,3.69678068]
[1735142041653,0.84495732,3473.0,3472.7,3.69678068]
[1735142042012,0.84495732,3473.0,3472.7,0.99658261]
[1735142042211,0.8127,3473.0,3472.7,0.99658261]
[1735142043332,2.87912,3473.3,3472.8,0.6908]
[1735142043658,0.0321607,3473.2,3472.8,0.6908]
[1735142044159,2.87912,3473.3,3472.8,0.6908]
[1735142044160,0.03216674,3473.1,3472.8,0.6908]
[1735142044649,0.03216674,3473.0,3472.9,0.99658261]
[1735142044815,2.87919,3473.2,3472.9,0.99658261]
[1735142045219,0.03216674,3473.1,3472.9,0.99658261]
[1735142046752,2.87904,3473.4,3472.9,0.99658261]
[1735142046926,0.03222713,3473.0,3472.9,0.99658261]
[1735142047128,2.87904,3473.4,3472.9,1.43534068]
[1735142047317,2.87904,3473.4,3473.0,2.49018048]
[1735142048857,2.87904,3473.4,3473.1,0.99658261]
[1735142049658,3.67628,3473.6,3473.1,0.99658261]
[1735142049819,3.67628,3473.6,3473.2,0.99658261]
[1735142050457,2.87888,3473.6,3473.2,0.99658261]
[1735142051158,2.87888,3473.6,3473.3,0.99658261]
[1735142052058,0.7662,3473.8,3473.3,0.99658261]
[1735142052258,3.64522,3473.4,3473.3,0.99658261]
[1735142052759,2.8791,3473.3,3473.2,2.70019807]
[1735142053932,2.8791,3473.3,3473.1,2.49271743]
[1735142055258,2.8791,3473.3,3473.2,0.99911956]
[1735142055642,1.19699536,3474.0,3473.2,4.39449901]
[1735142055969,1.19699536,3474.0,3473.9,0.6908]
[1735142056648,1.19699536,3474.0,3473.4,2.33464769]
[1735142056649,1.19699536,3474.1,3473.5,0.6908]
[1735142058178,2.87819,3474.5,3473.5,0.6908]
[1735142058179,2.87819,3474.5,3473.9,1.80960983]
[1735142058540,2.87827,3474.3,3473.9,1.80960983]
[1735142058739,0.55,3474.5,3473.9,1.80960983]
[1735142058934,3.42812,3474.5,3473.9,1.80960983]
[1735142059173,0.7662,3474.6,3473.9,1.80960983]
[1735142059339,0.7662,3474.6,3474.0,0.6908]
[1735142059541,2.87795,3474.7,3474.0,4.39080924]
[1735142060541,0.7662,3474.8,3474.0,4.39080924]
[1735142060739,0.7662,3474.8,3474.0,4.41959097]
[1735142060941,0.7662,3474.8,3474.1,3.70000924]
[1735142061353,3.64407,3474.8,3474.1,3.70000924]
[1735142061976,2.87771,3475.0,3474.1,5.173969]
[1735142062146,2.87771,3475.0,3474.2,0.02878146]
[1735142062544,2.87771,3475.0,3474.2,6.06343839]
[1735142062740,1.99139536,3475.6,3474.4,0.6908]
[1735142062944,1.99139536,3475.6,3474.7,0.6908]
[1735142063180,2.87729,3475.5,3474.7,0.6908]
[1735142064377,2.87729,3475.5,3474.7,1.28116177]
[1735142065163,0.7944,3475.6,3474.7,2.77475964]
[1735142065569,3.67165,3475.6,3474.7,2.77475964]
[1735142066187,2.87736,3475.5,3474.7,1.28116177]
[1735142066391,2.87752,3475.3,3474.7,0.6908]
[1735142066574,2.87728,3475.5,3474.7,0.6908]
[1735142066779,2.8776,3475.2,3474.7,0.6908]
[1735142067580,2.87745,3475.3,3474.5,0.56242327]
[1735142067785,2.87745,3475.3,3474.6,0.47697151]
[1735142068301,2.87745,3475.3,3474.6,1.16777151]
[1735142068504,0.7944,3475.5,3474.6,1.16777151]
[1735142068678,2.87736,3475.4,3474.6,1.16777151]
[1735142069095,2.87746,3475.3,3474.6,1.16777151]
[1735142070405,2.87718,3475.7,3474.8,0.6908]
[1735142070609,2.87713,3475.7,3474.8,0.6908]
[1735142070905,2.87729,3475.5,3474.8,0.6908]
[1735142071410,0.7944,3475.6,3474.8,0.6908]
[1735142071566,0.02760641,3475.4,3474.8,0.6908]
[1735142071772,2.87714,3475.7,3474.9,0.63803692]
[1735142071972,0.02760641,3475.3,3474.9,0.63803692]
[1735142072172,0.7944,3476.1,3475.1,0.6908]
[1735142072596,0.02764262,3476.0,3475.1,0.6908]
[1735142073099,0.57764262,3476.0,3475.1,0.6908]
[1735142073316,2.87713,3475.7,3475.1,0.6908]
[1735142073907,0.02764262,3475.6,3475.1,1.05714846]
[1735142075129,0.02764262,3475.5,3475.1,1.05714846]
[1735142075821,2.87705,3475.8,3475.1,1.05714846]
[1735142076423,0.02764262,3475.7,3475.1,1.05714846]
[1735142076988,0.02764262,3475.7,3475.2,0.6908]
[1735142077190,0.02764262,3475.7,3475.3,0.33917962]
[1735142077387,0.7944,3476.4,3475.5,0.6908]
[1735142077689,2.87655,3476.4,3475.5,0.6908]
[1735142078610,2.87665,3476.3,3475.5,0.6908]
[1735142079120,0.55,3476.5,3475.5,0.6908]
[1735142079326,2.87619,3476.9,3475.5,0.6908]
[1735142079327,2.87707,3475.8,3475.5,0.6908]
[1735142079901,2.87688,3476.0,3475.5,0.6908]
[1735142080510,0.55,3476.3,3475.5,0.6908]
[1735142080806,2.8769,3476.0,3475.5,0.6908]
[1735142081016,2.87696,3475.9,3475.5,0.6908]
[1735142081432,2.87704,3475.8,3475.5,0.6908]
[1735142081634,0.55,3476.2,3475.5,0.6908]
[1735142082036,2.87696,3475.9,3475.5,0.6908]
[1735142082899,0.7821,3475.8,3475.2,0.58933185]
[1735142083102,2.87732,3475.5,3474.7,0.6908]
[1735142083430,2.87732,3475.5,3474.8,0.30254477]
[1735142085135,2.87712,3475.7,3474.8,0.30254477]
[1735142085337,2.87721,3475.6,3475.0,0.6908]
[1735142086104,0.02855368,3475.5,3475.0,1.27830661]
[1735142086297,0.02855368,3475.5,3475.0,1.43926916]
[1735142088142,0.02855368,3475.5,3475.0,1.27830661]
[1735142088310,2.87735,3475.5,3475.0,1.27830661]
[1735142088517,0.02858987,3475.4,3475.0,1.27830661]
[1735142096094,2.90596987,3475.4,3475.0,1.27830661]
[1735142096265,2.87745,3475.3,3475.0,0.58750661]
[1735142096765,0.02858987,3475.2,3475.0,0.58750661]
[1735142097175,2.87745,3475.3,3475.0,0.58750661]
[1735142097683,0.02858987,3475.2,3475.0,0.58750661]
[1735142098073,0.02858987,3475.1,3475.0,0.58750661]
[1735142098281,2.87745,3475.3,3475.0,0.58750661]
[1735142098588,0.02854764,3475.2,3475.0,0.58750661]
[1735142098985,2.87745,3475.3,3475.0,0.58750661]
[1735142099478,0.02854764,3475.2,3475.0,0.58750661]
[1735142099713,2.87745,3475.3,3475.0,0.58750661]
[1735142099874,0.02854764,3475.2,3475.0,0.58750661]
[1735142100186,2.87745,3475.3,3475.0,0.58750661]
[1735142100387,0.02854764,3475.1,3475.0,0.58750661]
[1735142100589,2.87745,3475.3,3475.0,0.58750661]
[1735142100799,0.02854764,3475.1,3475.0,0.58750661]
[1735142100953,2.87745,3475.3,3475.0,0.58750661]
[1735142101155,0.02854764,3475.1,3475.0,0.58750661]
[1735142101357,2.87745,3475.3,3475.0,0.58750661]
[1735142102079,0.02854764,3475.2,3475.0,0.58750661]
[1735142102475,2.87745,3475.3,3475.0,0.58750661]
[1735142102994,0.02854764,3475.2,3475.0,0.58750661]
[1735142103195,2.87745,3475.3,3475.0,0.58750661]
[1735142103803,0.02854764,3475.2,3475.0,0.58750661]
[1735142104007,2.87745,3475.3,3475.0,0.58750661]
[1735142104203,0.02854764,3475.1,3475.0,0.58750661]
[1735142104377,2.87745,3475.3,3475.0,0.58750661]
[1735142104579,0.02854764,3475.1,3475.0,0.58750661]
[1735142104760,2.87745,3475.3,3475.1,0.99740928]
[1735142106265,2.87745,3475.3,3475.0,1.49398476]
[1735142106986,2.87745,3475.3,3475.1,1.49398476]
[1735142107224,2.87731,3475.5,3475.1,1.49398476]
[1735142107505,2.87742,3475.4,3475.1,1.49398476]
[1735142108229,2.87742,3475.4,3475.2,2.49214492]
[1735142109421,2.87742,3475.4,3475.3,0.99816016]
[1735142110427,2.87742,3475.4,3475.3,2.49616647]
[1735142112733,2.87742,3475.4,3475.3,0.99816016]
[1735142114632,7.23692,3475.4,3475.3,1.6e-07]
[1735142114937,0.8095,3475.1,3474.8,2.967377]
[1735142115242,7.23728,3474.9,3474.8,2.967377]
[1735142115544,3.42802,3474.6,3474.5,2.967377]
[1735142115836,4.23752,3474.6,3474.5,2.967377]
[1735142116369,4.26578411,3474.6,3474.5,2.967377]
[1735142117145,2.87854,3474.0,3473.8,1.49795925]
[1735142117665,2.8786,3473.9,3473.8,1.49795925]
[1735142117825,2.90686411,3473.9,3473.8,1.49795925]
[1735142118360,3.45686411,3473.9,3473.6,1.49795925]
[1735142118510,2.87877,3473.7,3473.6,1.49795925]
[1735142118715,2.90536835,3473.7,3473.6,1.49795925]
[1735142119613,3.45536835,3473.7,3473.6,1.49795925]
[1735142119810,0.57659835,3473.7,3473.2,1.49795925]
[1735142120051,2.87901,3473.5,3473.2,1.49795925]
[1735142120425,0.57659835,3473.7,3473.2,1.49795925]
[1735142120426,2.90549928,3473.4,3473.2,1.49795925]
[1735142120631,3.71499928,3473.4,3473.2,1.49795925]
[1735142121235,3.71499928,3473.4,3472.9,0.58706756]
[1735142121625,0.83592928,3473.4,3472.9,0.58706756]
[1735142122035,0.83592928,3473.4,3472.8,0.6908]
[1735142122822,2.8792,3473.2,3472.8,0.6908]
[1735142123361,2.8792,3473.2,3472.5,3.0]
[1735142123362,0.02621186,3473.1,3472.5,3.6908]
[1735142123566,0.02621186,3473.1,3472.5,5.13681377]
[1735142123875,2.8792,3473.2,3472.5,5.13681377]
[1735142124071,0.02621186,3473.0,3472.6,1.49358965]
[1735142124374,0.02621186,3472.9,3472.6,1.49358965]
[1735142124736,2.8792,3473.2,3472.6,1.49358965]
[1735142125042,0.02621186,3473.1,3472.6,1.49358965]
[1735142125363,2.87941,3473.0,3472.6,1.49358965]
[1735142125666,2.87941,3473.0,3472.5,0.6908]
[1735142125843,0.02621186,3472.9,3472.5,0.6908]
[1735142127070,0.02384211,3472.9,3472.5,0.6908]
[1735142127242,0.02384211,3472.9,3472.6,0.02879519]
[1735142127447,0.02384211,3472.9,3472.8,3.02892915]
[1735142127656,2.87869,3473.8,3472.9,0.6908]
[1735142127973,0.02528729,3473.7,3472.9,0.6908]
[1735142128176,0.02528729,3473.7,3473.0,0.61963938]
[1735142128474,2.87818,3474.5,3473.7,0.6908]
[1735142128772,1.99729536,3474.6,3473.7,3.6908]
[1735142128773,1.19699536,3474.6,3473.7,3.6908]
[1735142129566,2.87803,3474.6,3473.7,3.6908]
[1735142129798,2.87803,3474.6,3473.8,0.89077692]
[1735142131399,2.87753,3475.2,3474.3,0.6908]
[1735142131573,2.8776,3475.2,3474.3,0.6908]
[1735142131758,2.87762,3475.1,3474.3,1.28153791]
[1735142134493,0.8003,3475.8,3474.5,0.6908]
[1735142134647,0.02636832,3475.0,3474.5,0.6908]
[1735142134854,2.87737,3475.4,3474.5,0.6908]
[1735142135051,0.02636832,3474.9,3474.5,0.6908]
[1735142135288,2.87737,3475.4,3474.6,0.71597979]
[1735142135506,0.02676062,3474.8,3474.6,0.71597979]
[1735142135650,2.87737,3475.4,3474.6,0.71597979]
[1735142135851,0.02676062,3474.7,3474.6,0.71597979]
[1735142136081,2.87737,3475.4,3474.6,0.71597979]
[1735142136489,0.02676062,3475.3,3474.6,0.71597979]
[1735142136647,0.02676062,3475.3,3474.7,0.49930217]
[1735142139500,0.8061,3475.2,3474.5,1.27704186]
[1735142139703,2.87768,3475.1,3474.5,1.27704186]
[1735142139865,2.90444062,3475.1,3474.5,1.27704186]
[1735142140362,0.02676062,3475.1,3474.5,1.27704186]
[1735142140563,2.87746,3475.3,3474.5,1.27704186]
[1735142140794,0.02676062,3475.0,3474.6,0.42770419]
[1735142140977,2.87746,3475.3,3474.6,0.42770419]
[1735142141180,0.02676062,3474.9,3474.6,0.42770419]
[1735142141379,2.87746,3475.3,3474.6,0.42770419]
[1735142141687,0.02676062,3474.8,3474.6,0.42770419]
[1735142142003,0.02676062,3474.7,3474.6,0.42770419]
[1735142142701,2.87746,3475.3,3474.6,0.42770419]
[1735142143192,0.02676062,3475.2,3474.6,0.42770419]
[1735142146082,2.90429062,3475.2,3474.6,0.42770419]
[1735142146315,2.87762,3475.1,3474.5,1.27704186]
[1735142146523,2.90420347,3475.1,3474.5,1.27704186]
[1735142146714,2.90420347,3475.1,3474.5,0.58624186]
[1735142146715,0.7785,3475.0,3474.5,0.58624186]
[1735142146917,2.87785,3474.9,3474.5,0.58624186]
[1735142147305,0.02658347,3474.8,3474.5,0.58624186]
[1735142148121,2.90445347,3474.8,3474.5,0.58624186]
[1735142150733,0.02658347,3474.8,3474.5,0.58624186]
[1735142151024,0.7785,3475.4,3474.6,0.6908]
[1735142151224,0.7785,3475.7,3474.6,6.36338107]
[1735142151524,0.7785,3475.7,3474.6,6.33460334]
[1735142151726,0.7785,3475.7,3474.6,5.64380334]
[1735142152026,0.02627888,3475.6,3474.7,1.31380452]
[1735142152235,0.02627888,3475.6,3474.8,0.02877446]
[1735142154340,0.02627888,3475.6,3474.7,1.31380452]
[1735142154546,2.87721,3475.6,3474.7,1.31380452]
[1735142154709,2.87688,3476.0,3474.9,0.6908]
[1735142154907,2.87688,3476.0,3474.9,3.56858]
[1735142155307,0.02627888,3475.9,3475.0,0.6908]
[1735142157349,0.02627888,3475.9,3475.2,0.6908]
[1735142157551,2.87656,3476.4,3475.4,2.33812915]
[1735142157725,2.90346193,3476.3,3475.5,0.6908]
[1735142160265,0.02682193,3476.3,3475.5,0.6908]
[1735142160567,2.8776,3475.2,3474.7,2.4961154]
[1735142160875,0.02670613,3475.1,3474.7,2.4961154]
[1735142161036,2.90431613,3475.1,3474.7,2.4961154]
[1735142161238,2.8777,3475.0,3474.7,2.4961154]
[1735142161551,2.87786,3474.8,3474.7,1.20320987]
[1735142161738,4.27241151,3474.8,3474.7,1.20320987]
[1735142163132,4.27241151,3474.8,3474.0,0.6908]
[1735142163133,2.87806,3474.6,3474.0,0.6908]
[1735142163668,2.90368151,3474.5,3474.0,0.6908]
[1735142164462,2.90368151,3474.5,3474.0,0.71958196]
[1735142164667,0.02555151,3474.5,3474.0,1.11737219]
[1735142164959,2.87791,3474.8,3474.0,1.11737219]
[1735142165328,0.02519534,3474.7,3474.0,1.11737219]
[1735142165528,0.02519534,3474.7,3474.0,3.45550134]
[1735142165728,0.02519534,3474.7,3474.1,0.40304233]
[1735142166551,2.87791,3474.8,3474.1,0.40304233]
[1735142166944,0.02522553,3474.7,3474.1,0.40304233]
[1735142169245,0.7716,3474.6,3474.0,3.45550134]
[1735142169445,2.87822,3474.4,3473.8,0.57492192]
[1735142170047,0.02522553,3474.3,3473.8,0.57492192]
[1735142171486,0.02522553,3474.3,3473.9,0.02878232]
[1735142171787,3.64947,3474.8,3473.8,0.57492192]
[1735142172790,3.64947,3474.8,3474.1,0.6908]
[1735142173857,0.7716,3474.8,3474.1,0.6908]
[1735142174056,1.19699536,3475.6,3473.9,2.69739557]
[1735142174057,0.7716,3474.9,3473.9,2.69739557]
[1735142174290,3.64997,3474.2,3473.9,2.69739557]
[1735142175006,3.64997,3474.2,3473.8,0.99713353]
[1735142179081,0.7716,3474.2,3473.8,0.99713353]
[1735142179280,2.87855,3474.0,3473.8,0.99713353]
[1735142180182,2.87855,3474.0,3473.7,1.4941857]
[1735142181422,2.87855,3474.0,3473.6,0.56321708]
[1735142182861,2.87855,3474.0,3473.7,0.99682271]
[1735142183954,2.87855,3474.0,3473.6,0.56321708]
[1735142190539,0.7716,3474.2,3473.6,0.95835835]
[1735142190745,3.64998,3474.2,3473.6,0.95835835]
[1735142191380,0.7602,3474.5,3473.8,0.6908]
[1735142191688,2.87772,3475.0,3474.1,0.6908]
[1735142191860,0.7602,3475.1,3474.2,0.02877984]
[1735142192064,0.7602,3475.1,3474.1,7.15992192]
[1735142194357,0.7602,3475.1,3474.3,0.6908]
[1735142194591,3.63759,3475.4,3474.3,3.56907]
[1735142195786,2.87751,3475.3,3474.3,0.6908]
[1735142195981,2.87759,3475.2,3474.4,1.08531226]
[1735142196190,2.87776,3475.0,3474.4,2.4900208]
[1735142196777,3.63761,3475.4,3474.4,2.4900208]
[1735142196778,2.87755,3475.2,3474.4,2.4900208]
[1735142197657,2.87755,3475.2,3474.3,3.6908]
[1735142197894,2.87755,3475.2,3474.5,0.56449381]
[1735142198095,0.7602,3475.4,3474.7,0.6908]
[1735142198395,2.87722,3475.6,3474.7,0.6908]
[1735142199196,2.87738,3475.4,3474.7,0.6908]
[1735142199490,2.87745,3475.3,3474.7,0.6908]
[1735142200079,2.8776,3475.2,3474.7,0.6908]
[1735142200392,3.6372,3475.2,3474.7,0.6908]
[1735142201351,2.87738,3475.4,3474.7,1.3501423]
[1735142202089,0.7596,3475.5,3474.7,1.3501423]
[1735142202921,2.87703,3475.9,3474.8,0.6908]
[1735142202922,0.7596,3475.9,3474.8,0.6908]
[1735142203083,2.87719,3475.7,3474.8,0.6908]
[1735142203979,2.87779,3474.9,3474.5,1.89400987]
[1735142204499,2.87786,3474.8,3474.5,1.20320987]
[1735142205015,2.87786,3474.8,3474.3,1.20320987]
[1735142205445,2.87804,3474.6,3474.3,1.20320987]
[1735142205774,0.7596,3474.8,3474.3,1.20320987]
[1735142206079,2.87817,3474.5,3474.3,1.20320987]
[1735142206278,2.87819,3474.4,3474.3,1.20320987]
[1735142206533,0.55,3474.8,3474.0,2.41281311]
[1735142206534,3.63787,3474.3,3474.2,1.49543994]
[1735142207896,3.63787,3474.3,3473.6,2.20079738]
[1735142208104,3.6377,3474.6,3473.8,0.6908]
[1735142208301,0.55,3474.5,3473.8,0.6908]
[1735142208497,2.87795,3474.7,3473.8,0.6908]
[1735142208998,0.55,3474.8,3473.8,0.6908]
[1735142209401,2.87824,3474.4,3473.9,2.20079738]
[1735142209601,3.63784,3474.4,3473.9,2.20079738]
[1735142210419,0.7596,3474.4,3473.9,2.20079738]
[1735142210835,2.87827,3474.3,3473.9,2.20079738]
[1735142211004,2.8784,3474.2,3473.9,0.99758751]
[1735142212194,3.63781,3474.4,3473.6,3.69623732]
[1735142212496,3.63781,3474.4,3473.7,0.6782064]
[1735142212904,0.7596,3474.4,3473.7,0.6782064]
[1735142213147,2.87828,3474.3,3473.7,0.6782064]
[1735142213340,2.87828,3474.3,3473.8,2.20079738]
[1735142214517,2.87828,3474.3,3473.8,0.99758751]
[1735142214719,3.66234,3474.6,3473.8,1.74361455]
[1735142214907,0.7843,3474.6,3473.9,0.6908]
[1735142215109,2.87814,3474.5,3473.9,0.6908]
[1735142216206,2.87814,3474.5,3474.0,0.99758751]
[1735142219669,0.55,3474.8,3474.0,0.99758751]